[Event "Belt Road Women 2019"]
[Site "Shaoxing"]
[Date "2019.07.09"]
[Round "2.1"]
[White "Ni, Shiqun"]
[Black "Harika, Dronavalli"]
[Result "1/2-1/2"]
[ECO "B15"]
[WhiteElo "2407"]
[BlackElo "2492"]
[Annotator "ChessBase"]
[PlyCount "42"]
[EventDate "2019.07.08"]
[EventType "swiss"]
[EventCountry "CHN"]
[SourceTitle "playchess.com"]
[Source "ChessBase"]
[SourceQuality "1"]
[TimeControl "5400+30"]

1. e4 {[%emt 0:00:00]} c6 {[%emt 0:00:34]} 2. d4 {[%emt 0:01:47]} d5 {[%emt 0:00:19]} 3. Nc3 {[%emt 0:03:34]} dxe4 {[%emt 0:00:40]} 4. Nxe4 {[%emt 0:00:01]} Nf6 {[%emt 0:00:16]} 5. Nxf6+ {[%emt 0:00:12]} exf6 {[%emt 0:00:09]} 6. Bc4 {[%emt 0:00:18]} Bd6 {[%emt 0:01:12]} 7. Qe2+ {[%emt 0:00:08]} Qe7 {[%emt 0:00:13]} 8. Qxe7+ {[%emt 0:00:04]} Kxe7 {[%emt 0:01:36]} 9. Ne2 {[%emt 0:02:15]} Bf5 {[%emt 0:03:28]} 10. c3 {[%emt 0:00:08]} Re8 {[%emt 0:01:10]} 11. f3 {[%emt 0:05:58]} Nd7 {[%emt 0:04:28]} 12. Kf2 {[%emt 0:07:32]} Nb6 {[%emt 0:01:27]} 13. Bb3 {[%emt 0:00:03]} Kf8 {[%emt 0:01:46]} 14. Bd2 {[%emt 0:13:44]} Bd3 {[%emt 0:12:02]} 15. Rae1 {[%emt 0:00:34]} c5 {[%emt 0:01:18]} 16. Nf4 {[%emt 0:12:47]} Bc4 {[%emt 0:02:11]} 17. dxc5 {[%emt 0:10:46]} Bxc5+ {[%emt 0:02:04]} 18. Kg3 {[%emt 0:00:02]} Bd6 {[%emt 0:12:24]} 19. Kf2 {[%emt 0:00:06]} Bc5+ {[%emt 0:03:20]} 20. Kg3 {[%emt 0:00:03]} Bd6 {[%emt 0:08:23]} 21. Kf2 {[%emt 0:00:03]} Bc5+ {[%emt 0:00:33]} 1/2-1/2

[Event "Belt Road Women 2019"]
[Site "Shaoxing"]
[Date "2019.07.09"]
[Round "2.2"]
[White "Soumya, Swaminathan"]
[Black "Stefanova, Antoaneta"]
[Result "1/2-1/2"]
[ECO "C45"]
[WhiteElo "2402"]
[BlackElo "2474"]
[Annotator "ChessBase"]
[PlyCount "93"]
[EventDate "2019.07.08"]
[EventType "swiss"]
[EventCountry "CHN"]
[SourceTitle "playchess.com"]
[Source "ChessBase"]
[SourceQuality "1"]
[TimeControl "5400+30"]

1. e4 {[%emt 0:00:00]} e5 {[%emt 0:00:00]} 2. Nf3 {[%emt 0:00:00]} Nc6 {[%emt 0:00:00]} 3. d4 {[%emt 0:00:00]} exd4 {[%emt 0:00:40]} 4. Nxd4 {[%emt 0:00:00]} Qf6 {[%emt 0:06:56]} 5. Nxc6 {[%emt 0:00:10]} Bc5 {[%emt 0:04:14]} 6. Qf3 {[%emt 0:00:08]} dxc6 {[%emt 0:04:03]} 7. Nc3 {[%emt 0:00:32]} Qxf3 {[%emt 0:21:39]} 8. gxf3 {[%emt 0:00:08]} Be6 {[%emt 0:00:05]} 9. Rg1 {[%emt 0:05:09]} g6 {[%emt 0:05:35]} 10. Be3 {[%emt 0:02:13]} Bxe3 {[%emt 0:02:20]} 11. fxe3 {[%emt 0:00:03]} O-O-O {[%emt 0:00:52]} 12. Ne2 {[%emt 0:11:39]} f6 {[%emt 0:06:56]} 13. Nd4 {[%emt 0:08:37]} Bd7 {[%emt 0:08:04]} 14. b4 {[%emt 0:02:37]} Nh6 {[%emt 0:03:30]} 15. Bd3 {[%emt 0:11:54]} Rde8 {[%emt 0:03:26]} 16. Ke2 {[%emt 0:08:29]} Re5 {[%emt 0:02:59]} 17. Nb3 {[%emt 0:01:51]} Rh5 {[%emt 0:02:55]} 18. Rg2 {[%emt 0:00:04]} Re8 {[%emt 0:00:39]} 19. Kd2 {[%emt 0:13:43]} Nf7 {[%emt 0:04:38]} 20. c4 {[%emt 0:08:38]} Be6 {[%emt 0:01:47]} 21. Kc3 {[%emt 0:02:18]} Rh3 {[%emt 0:03:32]} 22. Nd4 {[%emt 0:02:23]} Bd7 {[%emt 0:01:03]} 23. c5 {[%emt 0:03:16]} Re5 {[%emt 0:00:53]} 24. Bc4 {[%emt 0:04:16]} Ng5 {[%emt 0:00:45]} 25. Rf1 {[%emt 0:00:38]} a5 {[%emt 0:03:11]} 26. a3 {[%emt 0:01:37]} b6 {[%emt 0:00:06]} 27. cxb6 {[%emt 0:03:53]} cxb6 {[%emt 0:00:54]} 28. Kb2 {[%emt 0:00:08]} Re7 {[%emt 0:06:12]} 29. Rc2 {[%emt 0:03:03]} axb4 {[%emt 0:01:57]} 30. Ba6+ {[%emt 0:04:30]} Kc7 {[%emt 0:00:07]} 31. axb4 {[%emt 0:00:22]} Ne6 {[%emt 0:00:29]} 32. Bc4 {[%emt 0:03:01]} Nxd4 {[%emt 0:01:28]} 33. exd4 {[%emt 0:00:02]} Kd6 {[%emt 0:00:17]} 34. Bb3 {[%emt 0:00:47]} g5 {[%emt 0:00:26]} 35. Ba4 {[%emt 0:00:47]} g4 {[%emt 0:01:06]} 36. fxg4 {[%emt 0:00:11]} Rxe4 {[%emt 0:00:25]} 37. Bxc6 {[%emt 0:00:35]} Rxd4 {[%emt 0:01:02]} 38. Bxd7 {[%emt 0:00:10]} Rxb4+ {[%emt 0:00:30]} 39. Kc1 {[%emt 0:00:04]} Kxd7 {[%emt 0:00:24]} 40. Rxf6 {[%emt 0:00:02]} b5 {[%emt 0:00:57]} 41. Rb6 {[%emt 0:00:50]} Rc4 {[%emt 0:01:48]} 42. Rxb5 {[%emt 0:00:25]} Rxc2+ {[%emt 0:00:04]} 43. Kxc2 {[%emt 0:00:06]} Rxh2+ {[%emt 0:00:04]} 44. Kd3 {[%emt 0:00:05]} Rh4 {[%emt 0:00:25]} 45. Ke3 {[%emt 0:00:19]} Rxg4 {[%emt 0:00:10]} 46. Rb7+ {[%emt 0:00:02]} Ke6 {[%emt 0:00:05]} 47. Rxh7 {[%emt 0:00:03]} 1/2-1/2

[Event "Belt Road Women 2019"]
[Site "Shaoxing"]
[Date "2019.07.09"]
[Round "2.3"]
[White "Munkhzul, Turmunkh"]
[Black "Zhu, Jiner"]
[Result "0-1"]
[ECO "A48"]
[WhiteElo "2386"]
[BlackElo "2454"]
[Annotator "ChessBase"]
[PlyCount "110"]
[EventDate "2019.07.08"]
[EventType "swiss"]
[EventCountry "CHN"]
[SourceTitle "playchess.com"]
[Source "ChessBase"]
[SourceQuality "1"]
[TimeControl "5400+30"]

1. d4 {[%emt 0:00:00]} Nf6 {[%emt 0:00:00]} 2. Nf3 {[%emt 0:00:08]} g6 {[%emt 0:00:00]} 3. c4 {[%emt 0:00:32]} Bg7 {[%emt 0:00:00]} 4. Nc3 {[%emt 0:00:37]} O-O {[%emt 0:00:12]} 5. Bf4 {[%emt 0:00:22]} d6 {[%emt 0:00:23]} 6. h3 {[%emt 0:00:30]} Nbd7 {[%emt 0:01:11]} 7. e3 {[%emt 0:00:38]} Qe8 {[%emt 0:05:41]} 8. Be2 {[%emt 0:01:17]} e5 {[%emt 0:00:12]} 9. Bh2 {[%emt 0:00:23]} Qe7 {[%emt 0:13:10]} 10. O-O {[%emt 0:01:38]} a6 {[%emt 0:02:32]} 11. Qc2 {[%emt 0:09:36]} b6 {[%emt 0:03:13]} 12. Rad1 {[%emt 0:03:07]} Bb7 {[%emt 0:01:03]} 13. Rfe1 {[%emt 0:03:43]} Rfe8 {[%emt 0:02:42]} 14. d5 {[%emt 0:08:05]} Rac8 {[%emt 0:01:54]} 15. b4 {[%emt 0:08:32]} Red8 {[%emt 0:03:39]} 16. Bg3 {[%emt 0:05:08]} c6 {[%emt 0:01:18]} 17. dxc6 {[%emt 0:04:07]} Bxc6 {[%emt 0:00:16]} 18. Qb3 {[%emt 0:00:31]} Ne4 {[%emt 0:08:42]} 19. Bh4 {[%emt 0:03:57]} Bf6 {[%emt 0:00:18]} 20. Nxe4 {[%emt 0:02:32]} Bxe4 {[%emt 0:00:10]} 21. Bg3 {[%emt 0:01:53]} Nf8 {[%emt 0:02:17]} 22. Nd2 {[%emt 0:00:57]} Bc6 {[%emt 0:00:14]} 23. b5 {[%emt 0:03:02]} axb5 {[%emt 0:03:14]} 24. cxb5 {[%emt 0:00:22]} Ba8 {[%emt 0:00:47]} 25. Nc4 {[%emt 0:01:32]} Qc7 {[%emt 0:00:38]} 26. Rc1 {[%emt 0:07:41]} Ne6 {[%emt 0:00:34]} 27. Qa3 {[%emt 0:03:00]} Nc5 {[%emt 0:00:39]} 28. Bg4 {[%emt 0:01:42]} Rb8 {[%emt 0:02:21]} 29. Red1 {[%emt 0:02:27]} h5 {[%emt 0:00:31]} 30. Be2 {[%emt 0:00:28]} Qe7 {[%emt 0:19:28]} 31. f3 {[%emt 0:04:08]} h4 {[%emt 0:03:46]} 32. Bf2 {[%emt 0:00:25]} e4 {[%emt 0:00:25]} 33. f4 {[%emt 0:01:04]} Rd7 {[%emt 0:02:03]} 34. Rc2 {[%emt 0:02:30]} Ra7 {[%emt 0:01:18]} 35. Qb4 {[%emt 0:05:03]} Ra4 {[%emt 0:00:35]} 36. Qb1 {[%emt 0:00:20]} Nd3 {[%emt 0:02:09]} 37. Qb3 {[%emt 0:01:30]} Rb4 {[%emt 0:05:01]} 38. Qa3 {[%emt 0:00:11]} Bd5 {[%emt 0:00:08]} 39. Nxb6 {[%emt 0:01:52]} Rxb6 {[%emt 0:02:03]} 40. Bxd3 {[%emt 0:00:27]} exd3 {[%emt 0:00:06]} 41. Rc8+ {[%emt 0:00:50]} Kh7 {[%emt 0:00:09]} 42. Qxb4 {[%emt 0:00:26]} Rxb5 {[%emt 0:01:09]} 43. Qxb5 {[%emt 0:04:33]} Qe4 {[%emt 0:00:07]} 44. Kf1 {[%emt 0:00:57]} Qxg2+ {[%emt 0:04:31]} 45. Ke1 {[%emt 0:00:07]} Qh1+ {[%emt 0:04:33]} 46. Kd2 {[%emt 0:00:14]} Qf3 {[%emt 0:00:14]} 47. Be1 {[%emt 0:05:44]} Qe2+ {[%emt 0:01:08]} 48. Kc1 {[%emt 0:00:17]} d2+ {[%emt 0:00:24]} 49. Rxd2 {[%emt 0:00:55]} Qxb5 {[%emt 0:00:10]} 50. Rc7 {[%emt 0:02:24]} Be4 {[%emt 0:00:37]} 51. Kd1 {[%emt 0:00:08]} Kg7 {[%emt 0:01:14]} 52. Rf2 {[%emt 0:02:41]} Qf5 {[%emt 0:01:49]} 53. Rh2 {[%emt 0:00:26]} Bf3+ {[%emt 0:00:08]} 54. Kc1 {[%emt 0:00:45]} Qd3 {[%emt 0:00:13]} 55. Rd2 {[%emt 0:00:31]} Qf1 {[%emt 0:00:23]} 0-1

[Event "Belt Road Women 2019"]
[Site "Shaoxing"]
[Date "2019.07.09"]
[Round "2.4"]
[White "Ushenina, Anna"]
[Black "Guo, Qi"]
[Result "1/2-1/2"]
[ECO "E04"]
[WhiteElo "2448"]
[BlackElo "2375"]
[Annotator "NA"]
[PlyCount "50"]
[EventDate "2019.07.08"]
[EventType "swiss"]
[EventCountry "CHN"]
[SourceTitle "playchess.com"]
[Source "ChessBase"]
[SourceQuality "1"]
[TimeControl "5400+30"]

1. d4 {[%emt 0:00:00]} d5 {[%emt 0:00:00]} 2. Nf3 {[%emt 0:01:04]} Nf6 {[%emt 0:00:00]} 3. c4 {[%emt 0:00:26]} e6 {[%emt 0:00:05]} 4. g3 {[%emt 0:00:41]} dxc4 {[%emt 0:00:31]} 5. Bg2 {[%emt 0:00:21]} c5 {[%emt 0:00:26]} 6. O-O {[%emt 0:00:33]} Nc6 {[%emt 0:00:07]} 7. Qa4 {[%emt 0:03:30]} Bd7 {[%emt 0:00:45]} 8. Qxc4 {[%emt 0:00:18]} b5 {[%emt 0:00:18]} 9. Qc3 {[%emt 0:01:34]} b4 {[%emt 0:00:11]} 10. Qd3 {[%emt 0:00:45]} Rc8 {[%emt 0:00:12]} 11. dxc5 {[%emt 0:01:06]} Bxc5 {[%emt 0:00:09]} 12. Be3 {[%emt 0:00:58]} Bxe3 {[%emt 0:00:15]} 13. Qxe3 {[%emt 0:00:07]} Qb6 {[%emt 0:00:05]} 14. Qxb6 {[%emt 0:10:56]} axb6 {[%emt 0:00:11]} 15. Nbd2 {[%emt 0:09:11]} Na5 {[%emt 0:18:46]} 16. Rfc1 {[%emt 0:09:43]} Ke7 {[%emt 0:05:21]} 17. Ne5 {[%emt 0:05:57]} Rxc1+ {[%emt 0:11:32]} 18. Rxc1 {[%emt 0:00:08]} Rc8 {[%emt 0:00:04]} 19. Rxc8 {[%emt 0:05:42]} Bxc8 {[%emt 0:00:11]} 20. e3 {[%emt 0:11:32]} Ba6 {[%emt 0:02:46]} 21. Bf1 {[%emt 0:00:34]} Bb7 {[%emt 0:04:44]} 22. Nd3 {[%emt 0:02:23]} b3 {[%emt 0:00:24]} 23. axb3 {[%emt 0:06:42]} Ne4 {[%emt 0:02:52]} 24. Nxe4 {[%emt 0:09:05]} Bxe4 {[%emt 0:01:36]} 25. Nc1 {[%emt 0:05:41]} Bd5 {[%emt 0:01:19]} 1/2-1/2

[Event "Belt Road Women 2019"]
[Site "Shaoxing"]
[Date "2019.07.09"]
[Round "2.5"]
[White "Tokhirjonova, Gulrukhbegim"]
[Black "Pratyusha, Bodda"]
[Result "1-0"]
[ECO "B81"]
[WhiteElo "2422"]
[BlackElo "2265"]
[Annotator "NA"]
[PlyCount "95"]
[EventDate "2019.07.08"]
[EventType "swiss"]
[EventCountry "CHN"]
[SourceTitle "playchess.com"]
[Source "ChessBase"]
[SourceQuality "1"]
[TimeControl "5400+30"]

1. e4 {[%emt 0:00:00]} c5 {[%emt 0:00:00]} 2. Nf3 {[%emt 0:00:00]} d6 {[%emt 0:00:21]} 3. d4 {[%emt 0:00:00]} cxd4 {[%emt 0:00:42]} 4. Nxd4 {[%emt 0:00:00]} Nf6 {[%emt 0:00:06]} 5. Nc3 {[%emt 0:00:13]} a6 {[%emt 0:00:30]} 6. h3 {[%emt 0:00:29]} e6 {[%emt 0:01:00]} 7. g4 {[%emt 0:01:16]} Nfd7 {[%emt 0:00:27]} 8. g5 {[%emt 0:01:58]} b5 {[%emt 0:02:00]} 9. Be3 {[%emt 0:03:14]} Bb7 {[%emt 0:00:06]} 10. a3 {[%emt 0:02:01]} Nc6 {[%emt 0:01:34]} 11. h4 {[%emt 0:01:09]} Be7 {[%emt 0:00:53]} 12. Qd2 {[%emt 0:09:18]} Qc7 {[%emt 0:04:23]} 13. O-O-O {[%emt 0:01:51]} O-O {[%emt 0:03:31]} 14. h5 {[%emt 0:05:28]} Nxd4 {[%emt 0:09:28]} 15. Bxd4 {[%emt 0:04:28]} Nc5 {[%emt 0:01:06]} 16. f3 {[%emt 0:07:21]} e5 {[%emt 0:07:47]} 17. Be3 {[%emt 0:01:36]} f5 {[%emt 0:03:28]} 18. gxf6 {[%emt 0:01:40]} Rxf6 {[%emt 0:00:15]} 19. Rg1 {[%emt 0:09:08]} Bf8 {[%emt 0:04:15]} 20. Rg3 {[%emt 0:08:59]} Qf7 {[%emt 0:05:15]} 21. Be2 {[%emt 0:06:46]} Ne6 {[%emt 0:05:52]} 22. Rdg1 {[%emt 0:01:56]} Nf4 {[%emt 0:04:03]} 23. Bxf4 {[%emt 0:02:12]} Rxf4 {[%emt 0:00:06]} 24. Rxg7+ {[%emt 0:02:44]} Qxg7 {[%emt 0:02:46]} 25. Rxg7+ {[%emt 0:00:12]} Kxg7 {[%emt 0:00:40]} 26. Nd1 {[%emt 0:01:07]} Be7 {[%emt 0:02:19]} 27. Ne3 {[%emt 0:00:23]} Raf8 {[%emt 0:08:34]} 28. a4 {[%emt 0:04:08]} h6 {[%emt 0:05:49]} 29. Kb1 {[%emt 0:00:38]} Rh4 {[%emt 0:04:26]} 30. axb5 {[%emt 0:07:59]} axb5 {[%emt 0:00:47]} 31. Bxb5 {[%emt 0:00:25]} Rxh5 {[%emt 0:02:34]} 32. Bd7 {[%emt 0:00:54]} Rg5 {[%emt 0:03:34]} 33. Nf5+ {[%emt 0:00:49]} Rfxf5 {[%emt 0:02:19]} 34. Bxf5 {[%emt 0:00:02]} Ba6 {[%emt 0:05:47]} 35. f4 {[%emt 0:02:35]} exf4 {[%emt 0:00:50]} 36. Qd4+ {[%emt 0:01:51]} Kf7 {[%emt 0:02:19]} 37. Qd5+ {[%emt 0:00:20]} Kg7 {[%emt 0:00:07]} 38. Qe6 {[%emt 0:00:32]} Bf8 {[%emt 0:00:57]} 39. e5 {[%emt 0:03:21]} dxe5 {[%emt 0:02:34]} 40. Qxe5+ {[%emt 0:00:22]} Kg8 {[%emt 0:00:33]} 41. Be6+ {[%emt 0:00:38]} Kh7 {[%emt 0:00:22]} 42. Qe4+ {[%emt 0:00:15]} Kg7 {[%emt 0:00:28]} 43. Qxf4 {[%emt 0:01:32]} Rg1+ {[%emt 0:00:11]} 44. Ka2 {[%emt 0:00:03]} Rf1 {[%emt 0:00:13]} 45. Qe5+ {[%emt 0:01:04]} Rf6 {[%emt 0:00:23]} 46. Qg3+ {[%emt 0:00:29]} Rg6 {[%emt 0:00:29]} 47. Qc7+ {[%emt 0:00:04]} Kf6 {[%emt 0:01:01]} 48. Qf7+ {[%emt 0:00:08]} 1-0

[Event "Belt Road Women 2019"]
[Site "Shaoxing"]
[Date "2019.07.09"]
[Round "2.6"]
[White "Pujari, Rucha"]
[Black "Munguntuul, Batkhuyag"]
[Result "0-1"]
[ECO "A62"]
[WhiteElo "2268"]
[BlackElo "2412"]
[Annotator "NA"]
[PlyCount "106"]
[EventDate "2019.07.08"]
[EventType "swiss"]
[EventCountry "CHN"]
[SourceTitle "playchess.com"]
[Source "ChessBase"]
[SourceQuality "1"]
[TimeControl "5400+30"]

1. d4 {[%emt 0:04:06]} Nf6 {[%emt 0:00:00]} 2. g3 {[%emt 0:00:58]} g6 {[%emt 0:00:46]} 3. Bg2 {[%emt 0:00:08]} Bg7 {[%emt 0:00:03]} 4. Nf3 {[%emt 0:00:44]} c5 {[%emt 0:02:53]} 5. d5 {[%emt 0:00:26]} d6 {[%emt 0:06:08]} 6. c4 {[%emt 0:00:36]} e6 {[%emt 0:02:38]} 7. Nc3 {[%emt 0:00:25]} exd5 {[%emt 0:00:06]} 8. cxd5 {[%emt 0:00:14]} O-O {[%emt 0:00:06]} 9. O-O {[%emt 0:00:13]} Re8 {[%emt 0:00:06]} 10. Bf4 {[%emt 0:01:09]} h6 {[%emt 0:00:42]} 11. Nb5 {[%emt 0:12:38]} Bf8 {[%emt 0:01:04]} 12. a4 {[%emt 0:01:20]} Na6 {[%emt 0:00:46]} 13. h3 {[%emt 0:06:36]} Nb4 {[%emt 0:02:11]} 14. Nc3 {[%emt 0:02:43]} g5 {[%emt 0:12:47]} 15. Nxg5 {[%emt 0:03:56]} hxg5 {[%emt 0:00:00]} 16. Bxg5 {[%emt 0:00:40]} Be7 {[%emt 0:00:54]} 17. Bc1 {[%emt 0:09:48]} Nh7 {[%emt 0:05:22]} 18. e4 {[%emt 0:04:54]} Bf6 {[%emt 0:03:26]} 19. f4 {[%emt 0:13:15]} Bd4+ {[%emt 0:10:54]} 20. Kh1 {[%emt 0:00:00]} Bd7 {[%emt 0:18:41]} 21. Ne2 {[%emt 0:08:46]} Bg7 {[%emt 0:00:00]} 22. f5 {[%emt 0:07:50]} c4 {[%emt 0:04:04]} 23. Nf4 {[%emt 0:09:09]} Nf6 {[%emt 0:05:00]} 24. Bd2 {[%emt 0:01:41]} Nd3 {[%emt 0:04:44]} 25. Bc3 {[%emt 0:08:47]} b5 {[%emt 0:06:07]} 26. Nxd3 {[%emt 0:00:00]} cxd3 {[%emt 0:00:00]} 27. Qxd3 {[%emt 0:00:11]} bxa4 {[%emt 0:01:05]} 28. g4 {[%emt 0:00:33]} Nh7 {[%emt 0:00:00]} 29. Qg3 {[%emt 0:02:08]} Bb5 {[%emt 0:00:15]} 30. Rg1 {[%emt 0:00:18]} Ng5 {[%emt 0:00:56]} 31. Rae1 {[%emt 0:00:34]} Bxc3 {[%emt 0:00:49]} 32. bxc3 {[%emt 0:00:00]} Kg7 {[%emt 0:00:51]} 33. h4 {[%emt 0:00:30]} Rh8 {[%emt 0:00:42]} 34. e5 {[%emt 0:00:18]} dxe5 {[%emt 0:01:57]} 35. Rxe5 {[%emt 0:00:07]} Qf6 {[%emt 0:02:09]} 36. Rge1 {[%emt 0:01:42]} Rxh4+ {[%emt 0:01:49]} 37. Qxh4 {[%emt 0:00:14]} Rh8 {[%emt 0:00:02]} 38. Qxh8+ {[%emt 0:00:22]} Kxh8 {[%emt 0:00:01]} 39. d6 {[%emt 0:00:54]} Qh6+ {[%emt 0:02:35]} 40. Kg1 {[%emt 0:00:02]} Qxd6 {[%emt 0:00:21]} 41. Rxb5 {[%emt 0:00:36]} Nf3+ {[%emt 0:00:20]} 42. Bxf3 {[%emt 0:00:48]} Qg3+ {[%emt 0:00:02]} 43. Bg2 {[%emt 0:00:36]} Qxe1+ {[%emt 0:00:04]} 44. Kh2 {[%emt 0:00:19]} a3 {[%emt 0:00:31]} 45. Ra5 {[%emt 0:00:42]} Qxc3 {[%emt 0:00:19]} 46. Rxa7 {[%emt 0:00:14]} Qe5+ {[%emt 0:00:14]} 47. Kh1 {[%emt 0:00:13]} Qa1+ {[%emt 0:00:09]} 48. Kh2 {[%emt 0:00:04]} a2 {[%emt 0:00:30]} 49. Ra8+ {[%emt 0:00:41]} Kh7 {[%emt 0:01:13]} 50. f6 {[%emt 0:00:39]} Qe5+ {[%emt 0:00:10]} 51. Kh3 {[%emt 0:00:05]} a1=Q {[%emt 0:00:51]} 52. Be4+ {[%emt 0:00:10]} Kh6 {[%emt 0:00:51]} 53. g5+ {[%emt 0:01:41]} Kxg5 {[%emt 0:00:06]} 0-1

[Event "Belt Road Women 2019"]
[Site "Shaoxing"]
[Date "2019.07.09"]
[Round "2.7"]
[White "Xu, Yuze"]
[Black "Kosteniuk, Alexandra"]
[Result "0-1"]
[ECO "C47"]
[WhiteElo "2083"]
[BlackElo "2517"]
[Annotator "ChessBase"]
[PlyCount "96"]
[EventDate "2019.07.08"]
[EventType "swiss"]
[EventCountry "CHN"]
[SourceTitle "playchess.com"]
[Source "ChessBase"]
[SourceQuality "1"]
[TimeControl "5400+30"]

1. e4 {[%emt 0:00:00]} e5 {[%emt 0:00:00]} 2. Nf3 {[%emt 0:00:00]} Nc6 {[%emt 0:00:00]} 3. Nc3 {[%emt 0:00:00]} Nf6 {[%emt 0:00:00]} 4. d4 {[%emt 0:00:00]} exd4 {[%emt 0:00:01]} 5. Nxd4 {[%emt 0:00:03]} Bb4 {[%emt 0:00:05]} 6. Nxc6 {[%emt 0:00:15]} bxc6 {[%emt 0:00:05]} 7. Bd3 {[%emt 0:00:14]} O-O {[%emt 0:00:06]} 8. O-O {[%emt 0:00:10]} d5 {[%emt 0:00:04]} 9. exd5 {[%emt 0:00:14]} cxd5 {[%emt 0:00:05]} 10. Bg5 {[%emt 0:00:11]} c6 {[%emt 0:00:38]} 11. Qf3 {[%emt 0:00:26]} Be7 {[%emt 0:04:08]} 12. h3 {[%emt 0:01:27]} Be6 {[%emt 0:01:35]} 13. Ne2 {[%emt 0:05:07]} c5 {[%emt 0:02:16]} 14. Rfd1 {[%emt 0:08:11]} Qb6 {[%emt 0:04:22]} 15. b3 {[%emt 0:03:09]} h6 {[%emt 0:12:07]} 16. Bxf6 {[%emt 0:16:31]} Bxf6 {[%emt 0:00:07]} 17. Rab1 {[%emt 0:00:18]} Be5 {[%emt 0:05:44]} 18. Nf4 {[%emt 0:09:32]} Rad8 {[%emt 0:03:59]} 19. Re1 {[%emt 0:09:51]} Bc7 {[%emt 0:04:57]} 20. c4 {[%emt 0:16:46]} Bxf4 {[%emt 0:09:39]} 21. Qxf4 {[%emt 0:00:15]} dxc4 {[%emt 0:00:25]} 22. bxc4 {[%emt 0:03:58]} Qd6 {[%emt 0:00:10]} 23. Qxd6 {[%emt 0:01:27]} Rxd6 {[%emt 0:00:02]} 24. Bf1 {[%emt 0:06:43]} Rfd8 {[%emt 0:01:02]} 25. Rb5 {[%emt 0:04:05]} Rd1 {[%emt 0:00:45]} 26. Rxd1 {[%emt 0:01:12]} Rxd1 {[%emt 0:00:02]} 27. Rxc5 {[%emt 0:00:12]} Kf8 {[%emt 0:01:32]} 28. f4 {[%emt 0:02:02]} Ke7 {[%emt 0:01:27]} 29. Kf2 {[%emt 0:00:35]} Rd2+ {[%emt 0:00:10]} 30. Ke3 {[%emt 0:01:17]} Rxa2 {[%emt 0:00:06]} 31. f5 {[%emt 0:09:02]} Bd7 {[%emt 0:00:22]} 32. g4 {[%emt 0:00:08]} f6 {[%emt 0:05:32]} 33. Bd3 {[%emt 0:01:45]} Kd6 {[%emt 0:00:20]} 34. Rd5+ {[%emt 0:00:21]} Kc7 {[%emt 0:00:11]} 35. Be2 {[%emt 0:01:21]} Bc6 {[%emt 0:01:48]} 36. Rd1 {[%emt 0:00:37]} a5 {[%emt 0:00:35]} 37. h4 {[%emt 0:00:23]} Rb2 {[%emt 0:00:22]} 38. g5 {[%emt 0:00:38]} a4 {[%emt 0:03:31]} 39. gxf6 {[%emt 0:00:05]} gxf6 {[%emt 0:00:01]} 40. Ra1 {[%emt 0:00:38]} Kb6 {[%emt 0:00:18]} 41. Bd1 {[%emt 0:00:40]} Ka5 {[%emt 0:00:43]} 42. c5 {[%emt 0:00:36]} Kb4 {[%emt 0:00:20]} 43. Bxa4 {[%emt 0:00:18]} Bxa4 {[%emt 0:00:09]} 44. Kf3 {[%emt 0:00:44]} h5 {[%emt 0:00:37]} 45. Re1 {[%emt 0:00:30]} Kxc5 {[%emt 0:00:27]} 46. Re6 {[%emt 0:00:21]} Bd1+ {[%emt 0:00:24]} 47. Kg3 {[%emt 0:00:26]} Rb6 {[%emt 0:00:06]} 48. Re1 {[%emt 0:00:40]} Bg4 {[%emt 0:00:15]} 0-1

[Event "Belt Road Women 2019"]
[Site "Shaoxing"]
[Date "2019.07.09"]
[Round "2.8"]
[White "Dzagnidze, Nana"]
[Black "Li, Yunshan"]
[Result "1-0"]
[ECO "A34"]
[WhiteElo "2511"]
[BlackElo "2254"]
[Annotator "ChessBase"]
[PlyCount "81"]
[EventDate "2019.07.08"]
[EventType "swiss"]
[EventCountry "CHN"]
[SourceTitle "playchess.com"]
[Source "ChessBase"]
[SourceQuality "1"]
[TimeControl "5400+30"]

1. c4 {[%emt 0:00:00]} c5 {[%emt 0:00:00]} 2. Nf3 {[%emt 0:00:00]} Nf6 {[%emt 0:00:07]} 3. Nc3 {[%emt 0:00:01]} d5 {[%emt 0:00:17]} 4. cxd5 {[%emt 0:00:06]} Nxd5 {[%emt 0:00:03]} 5. e3 {[%emt 0:01:45]} Nxc3 {[%emt 0:02:12]} 6. bxc3 {[%emt 0:00:20]} g6 {[%emt 0:00:29]} 7. Bb5+ {[%emt 0:14:08]} Bd7 {[%emt 0:00:45]} 8. a4 {[%emt 0:03:20]} Bg7 {[%emt 0:03:55]} 9. O-O {[%emt 0:03:42]} O-O {[%emt 0:03:45]} 10. d4 {[%emt 0:00:44]} Qa5 {[%emt 0:03:28]} 11. Ba3 {[%emt 0:05:42]} a6 {[%emt 0:02:53]} 12. Be2 {[%emt 0:02:48]} Bxa4 {[%emt 0:13:55]} 13. Qb1 {[%emt 0:00:50]} Bc6 {[%emt 0:04:18]} 14. Bxc5 {[%emt 0:02:54]} Qd8 {[%emt 0:00:55]} 15. c4 {[%emt 0:11:50]} Nd7 {[%emt 0:01:01]} 16. Ba3 {[%emt 0:00:06]} b6 {[%emt 0:02:40]} 17. e4 {[%emt 0:13:08]} Re8 {[%emt 0:03:50]} 18. e5 {[%emt 0:00:36]} e6 {[%emt 0:04:13]} 19. Bd6 {[%emt 0:04:44]} Bf8 {[%emt 0:05:08]} 20. Bxf8 {[%emt 0:05:10]} Kxf8 {[%emt 0:00:35]} 21. Rd1 {[%emt 0:01:15]} Bb7 {[%emt 0:01:25]} 22. Qc1 {[%emt 0:02:59]} Kg7 {[%emt 0:01:28]} 23. Qf4 {[%emt 0:00:57]} Qe7 {[%emt 0:04:42]} 24. h4 {[%emt 0:02:03]} h6 {[%emt 0:05:49]} 25. Rab1 {[%emt 0:04:13]} Rac8 {[%emt 0:02:09]} 26. Nd2 {[%emt 0:05:06]} f5 {[%emt 0:11:21]} 27. exf6+ {[%emt 0:00:16]} Qxf6 {[%emt 0:00:05]} 28. Qg3 {[%emt 0:00:21]} e5 {[%emt 0:02:32]} 29. Bg4 {[%emt 0:01:22]} Rcd8 {[%emt 0:02:00]} 30. Re1 {[%emt 0:00:21]} Qd6 {[%emt 0:11:49]} 31. c5 {[%emt 0:04:53]} Qxd4 {[%emt 0:03:35]} 32. Bxd7 {[%emt 0:01:25]} Qxd7 {[%emt 0:00:31]} 33. Rxb6 {[%emt 0:00:13]} Re6 {[%emt 0:03:21]} 34. Rxe6 {[%emt 0:02:41]} Qxe6 {[%emt 0:00:04]} 35. Rxe5 {[%emt 0:00:06]} Qc6 {[%emt 0:00:40]} 36. Ne4 {[%emt 0:00:57]} Rd5 {[%emt 0:01:24]} 37. Nd6 {[%emt 0:03:57]} Rd1+ {[%emt 0:00:29]} 38. Kh2 {[%emt 0:00:05]} Qd7 {[%emt 0:00:31]} 39. Qe3 {[%emt 0:03:33]} Kf6 {[%emt 0:00:20]} 40. Qf4+ {[%emt 0:00:08]} Kg7 {[%emt 0:00:06]} 41. Ne8+ {[%emt 0:00:12]} 1-0